[Event "*** Titled Tuesday Blitz"]
[Site "Chess.com"]
[Date "2020.05.26"]
[Round "2"]
[White "underdogchss"]
[Black "chesslh19"]
[Result "1-0"]
[WhiteElo "2414"]
[BlackElo "2164"]
[TimeControl "180+1"]
[EndTime "10:18:53 PDT"]
[Termination "underdogchss won by checkmate"]

1. d4 {[%clk 0:02:55.6]} 1... Nf6 {[%clk 0:02:59.6]} 2. Nf3 {[%clk 0:02:53.6]}
2... e6 {[%clk 0:02:59.3]} 3. c4 {[%clk 0:02:52.7]} 3... d5 {[%clk 0:02:59.2]}
4. Nc3 {[%clk 0:02:51.5]} 4... c5 {[%clk 0:02:59.8]} 5. cxd5 {[%clk 0:02:50.7]}
5... cxd4 {[%clk 0:02:59.6]} 6. Qa4+ {[%clk 0:02:47.9]} 6... Bd7 {[%clk
0:02:59.3]} 7. Qxd4 {[%clk 0:02:48.8]} 7... exd5 {[%clk 0:02:59]} 8. Bg5 {[%clk
0:02:48.6]} 8... Nc6 {[%clk 0:02:29.5]} 9. Qd3 {[%clk 0:02:15.1]} 9... Be7
{[%clk 0:02:12.1]} 10. e3 {[%clk 0:02:11.5]} 10... O-O {[%clk 0:01:59.5]} 11.
Be2 {[%clk 0:02:11.4]} 11... Bg4 {[%clk 0:01:36]} 12. O-O {[%clk 0:02:01.5]}
12... Bxf3 {[%clk 0:01:07.5]} 13. Bxf3 {[%clk 0:02:01.3]} 13... Ne5 {[%clk
0:01:07.8]} 14. Qd1 {[%clk 0:01:59.7]} 14... Nxf3+ {[%clk 0:01:05.9]} 15. Qxf3
{[%clk 0:01:59.7]} 15... h6 {[%clk 0:00:25.1]} 16. Bf4 {[%clk 0:01:42.9]} 16...
Qd7 {[%clk 0:00:20.8]} 17. Rfd1 {[%clk 0:01:41.5]} 17... Qe6 {[%clk 0:00:20.8]}
18. Nxd5 {[%clk 0:01:22.3]} 18... Nxd5 {[%clk 0:00:19.9]} 19. Qxd5 {[%clk
0:01:23.2]} 19... Qxd5 {[%clk 0:00:16.9]} 20. Rxd5 {[%clk 0:01:24.1]} 20... Bf6
{[%clk 0:00:17.6]} 21. Rb5 {[%clk 0:01:20.4]} 21... b6 {[%clk 0:00:17.4]} 22. a4
{[%clk 0:01:01.2]} 22... Rfc8 {[%clk 0:00:17.2]} 23. g4 {[%clk 0:00:54.2]} 23...
Rc2 {[%clk 0:00:16.7]} 24. Rb1 {[%clk 0:00:38.7]} 24... Rd8 {[%clk 0:00:14.8]}
25. e4 {[%clk 0:00:38]} 25... Rd4 {[%clk 0:00:14.4]} 26. a5 {[%clk 0:00:26.8]}
26... Rxe4 {[%clk 0:00:13.6]} 27. Bb8 {[%clk 0:00:24.9]} 27... bxa5 {[%clk
0:00:13]} 28. Bxa7 {[%clk 0:00:19.3]} 28... Bd4 {[%clk 0:00:12.3]} 29. Bxd4
{[%clk 0:00:17.2]} 29... Rxd4 {[%clk 0:00:12.4]} 30. Rxa5 {[%clk 0:00:17.3]}
30... Rxg4+ {[%clk 0:00:12.3]} 31. Kf1 {[%clk 0:00:16.5]} 31... Rb4 {[%clk
0:00:12.2]} 32. Ra2 {[%clk 0:00:16.3]} 32... Rb3 {[%clk 0:00:12.2]} 33. Ke1
{[%clk 0:00:15.3]} 33... Rc6 {[%clk 0:00:11.9]} 34. Kf1 {[%clk 0:00:14.8]} 34...
Rcb6 {[%clk 0:00:10.7]} 35. Ke2 {[%clk 0:00:13.6]} 35... Re6+ {[%clk 0:00:10.4]}
36. Kd2 {[%clk 0:00:13.5]} 36... Reb6 {[%clk 0:00:08.8]} 37. Kc2 {[%clk
0:00:12.8]} 37... Rf3 {[%clk 0:00:08.9]} 38. Rf1 {[%clk 0:00:11.6]} 38... Rh3
{[%clk 0:00:08.9]} 39. Ra8+ {[%clk 0:00:10.5]} 39... Kh7 {[%clk 0:00:08.5]} 40.
Ra7 {[%clk 0:00:11.4]} 40... f6 {[%clk 0:00:05.9]} 41. Re1 {[%clk 0:00:09.8]}
41... Rxh2 {[%clk 0:00:05.6]} 42. Ree7 {[%clk 0:00:10.7]} 42... Rxf2+ {[%clk
0:00:05.6]} 43. Kc1 {[%clk 0:00:11.4]} 43... Rfxb2 {[%clk 0:00:04.5]} 44. Rxg7+
{[%clk 0:00:10.5]} 44... Kh8 {[%clk 0:00:05.1]} 45. Rgc7 {[%clk 0:00:10.3]}
45... Rb1+ {[%clk 0:00:04.4]} 46. Kc2 {[%clk 0:00:10.7]} 46... R1b2+ {[%clk
0:00:04.9]} 47. Kc3 {[%clk 0:00:11.3]} 47... R2b3+ {[%clk 0:00:05.2]} 48. Kc4
{[%clk 0:00:11.5]} 48... R3b4+ {[%clk 0:00:05.4]} 49. Kd3 {[%clk 0:00:10.9]}
49... Rb3+ {[%clk 0:00:05]} 50. Ke4 {[%clk 0:00:11.1]} 50... Rb8 {[%clk
0:00:03.7]} 51. Rh7+ {[%clk 0:00:07.7]} 51... Kg8 {[%clk 0:00:03.6]} 52. Rhg7+
{[%clk 0:00:08.1]} 52... Kh8 {[%clk 0:00:03.8]} 53. Rh7+ {[%clk 0:00:05.8]}
53... Kg8 {[%clk 0:00:03.8]} 54. Rag7+ {[%clk 0:00:06.7]} 54... Kf8 {[%clk
0:00:03.7]} 55. Rc7 {[%clk 0:00:06.7]} 55... Kg8 {[%clk 0:00:03.6]} 56. Kf5
{[%clk 0:00:06.4]} 56... R3b5+ {[%clk 0:00:03.1]} 57. Kg6 {[%clk 0:00:04.8]}
57... Rg5+ {[%clk 0:00:02.5]} 58. Kxh6 {[%clk 0:00:05.2]} 58... Rgb5 {[%clk
0:00:02.2]} 59. Rcg7+ {[%clk 0:00:02.5]} 59... Kf8 {[%clk 0:00:01.3]} 60. Rh8#
{[%clk 0:00:03.4]} 1-0

[Event "*** Titled Tuesday Blitz"]
[Site "Chess.com"]
[Date "2020.05.26"]
[Round "2"]
[White "124chess"]
[Black "blitzking1729"]
[Result "1-0"]
[WhiteElo "2768"]
[BlackElo "2505"]
[TimeControl "180+1"]
[EndTime "10:18:54 PDT"]
[Termination "124chess won by resignation"]

1. d4 {[%clk 0:03:00.6]} 1... d5 {[%clk 0:02:59.2]} 2. Nf3 {[%clk 0:02:59.5]}
2... e6 {[%clk 0:02:56.4]} 3. Bf4 {[%clk 0:02:58.9]} 3... Bd6 {[%clk 0:02:54.5]}
4. Bg3 {[%clk 0:02:58.8]} 4... Ne7 {[%clk 0:02:53.9]} 5. e3 {[%clk 0:02:58.4]}
5... c5 {[%clk 0:02:50.3]} 6. c3 {[%clk 0:02:58.1]} 6... Nbc6 {[%clk 0:02:49.9]}
7. Nbd2 {[%clk 0:02:57]} 7... b6 {[%clk 0:02:46]} 8. Bd3 {[%clk 0:02:56.2]} 8...
Qc7 {[%clk 0:02:45.4]} 9. Qe2 {[%clk 0:02:54.6]} 9... O-O {[%clk 0:02:25.8]} 10.
O-O {[%clk 0:02:48.7]} 10... Bb7 {[%clk 0:02:19.8]} 11. e4 {[%clk 0:02:46.7]}
11... cxd4 {[%clk 0:02:17.6]} 12. cxd4 {[%clk 0:02:43.8]} 12... Bxg3 {[%clk
0:02:16.1]} 13. hxg3 {[%clk 0:02:42.5]} 13... dxe4 {[%clk 0:02:14.8]} 14. Nxe4
{[%clk 0:02:17.3]} 14... Nf5 {[%clk 0:02:05.7]} 15. Neg5 {[%clk 0:01:52.2]}
15... h6 {[%clk 0:01:49.5]} 16. Nxe6 {[%clk 0:01:46.1]} 16... fxe6 {[%clk
0:01:48.2]} 17. Qxe6+ {[%clk 0:01:47]} 17... Kh8 {[%clk 0:01:48.2]} 18. Bxf5
{[%clk 0:01:46.1]} 18... Bc8 {[%clk 0:01:48.2]} 19. Qc4 {[%clk 0:01:39.3]} 19...
Bxf5 {[%clk 0:01:20.2]} 20. d5 {[%clk 0:01:39.2]} 20... Rac8 {[%clk 0:00:40.2]}
21. dxc6 {[%clk 0:01:32.9]} 21... Qxc6 {[%clk 0:00:38.1]} 22. Qxc6 {[%clk
0:01:33.8]} 22... Rxc6 {[%clk 0:00:37.4]} 23. Rac1 {[%clk 0:01:33.6]} 23... Rxc1
{[%clk 0:00:32.3]} 24. Rxc1 {[%clk 0:01:34.5]} 24... Rc8 {[%clk 0:00:30.8]} 25.
Rxc8+ {[%clk 0:01:33.3]} 25... Bxc8 {[%clk 0:00:31.7]} 26. Kf1 {[%clk
0:01:33.4]} 26... Kg8 {[%clk 0:00:31.6]} 27. Ke2 {[%clk 0:01:33.6]} 27... Kf7
{[%clk 0:00:32.1]} 28. Ke3 {[%clk 0:01:33.7]} 28... Ke6 {[%clk 0:00:29]} 29.
Nd4+ {[%clk 0:01:32.3]} 29... Kd5 {[%clk 0:00:23.3]} 30. b3 {[%clk 0:01:32.2]}
30... Bd7 {[%clk 0:00:22]} 31. f3 {[%clk 0:01:31.5]} 31... Ke5 {[%clk
0:00:20.7]} 32. g4 {[%clk 0:01:30.1]} 32... g5 {[%clk 0:00:20.1]} 33. g3 {[%clk
0:01:29.9]} 33... a6 {[%clk 0:00:18.3]} 34. f4+ {[%clk 0:01:27.3]} 34... Kf6
{[%clk 0:00:17.3]} 35. f5 {[%clk 0:01:24.8]} 35... Ke5 {[%clk 0:00:17]} 36. Nf3+
{[%clk 0:01:14.1]} 36... Kf6 {[%clk 0:00:16.8]} 37. Kd4 {[%clk 0:01:11.9]} 37...
h5 {[%clk 0:00:15.4]} 38. Ne5 {[%clk 0:01:09.8]} 38... Bc8 {[%clk 0:00:13.5]}
39. gxh5 {[%clk 0:01:09.3]} 39... Bxf5 {[%clk 0:00:12]} 40. g4 {[%clk
0:01:09.4]} 40... Bb1 {[%clk 0:00:10.9]} 41. a3 {[%clk 0:01:08.7]} 41... Bc2
{[%clk 0:00:08.7]} 42. b4 {[%clk 0:01:06.8]} 42... a5 {[%clk 0:00:09]} 43. Kd5
{[%clk 0:00:45.6]} 43... axb4 {[%clk 0:00:06.3]} 44. axb4 {[%clk 0:00:46.5]}
44... Bb3+ {[%clk 0:00:06.2]} 45. Kd6 {[%clk 0:00:46.3]} 45... b5 {[%clk
0:00:04.8]} 46. Nd7+ {[%clk 0:00:44.4]} 46... Kg7 {[%clk 0:00:05]} 47. Ke5
{[%clk 0:00:42.3]} 47... Bd1 {[%clk 0:00:05.1]} 48. Kf5 {[%clk 0:00:39.8]} 48...
Kh6 {[%clk 0:00:06]} 49. Ne5 {[%clk 0:00:39.5]} 49... Bc2+ {[%clk 0:00:06.2]}
50. Kf6 {[%clk 0:00:39.1]} 50... Bd1 {[%clk 0:00:04.3]} 51. Nf7+ {[%clk
0:00:37.1]} 51... Kh7 {[%clk 0:00:04.6]} 52. Nxg5+ {[%clk 0:00:37.4]} 52... Kg8
{[%clk 0:00:04.7]} 53. Kf5 {[%clk 0:00:37.1]} 53... Bc2+ {[%clk 0:00:04.2]} 54.
Kf4 {[%clk 0:00:36.3]} 54... Bd1 {[%clk 0:00:04.4]} 55. Ne4 {[%clk 0:00:34.9]}
55... Kg7 {[%clk 0:00:03.2]} 56. Nc3 {[%clk 0:00:34]} 56... Ba4 {[%clk
0:00:03.2]} 57. g5 {[%clk 0:00:33.2]} 57... Kf7 {[%clk 0:00:03.4]} 58. Nd5
{[%clk 0:00:28.5]} 58... Bd1 {[%clk 0:00:02.7]} 59. h6 {[%clk 0:00:28.6]} 59...
Kg6 {[%clk 0:00:02.8]} 60. Ne7+ {[%clk 0:00:28.2]} 60... Kh7 {[%clk 0:00:03.1]}
61. Kf5 {[%clk 0:00:27.5]} 61... Bc2+ {[%clk 0:00:03.3]} 62. Kf6 {[%clk
0:00:26.6]} 62... Bb3 {[%clk 0:00:03.4]} 63. Nf5 {[%clk 0:00:25.2]} 63... Bc2
{[%clk 0:00:02.2]} 64. g6+ {[%clk 0:00:25.2]} 1-0

[Event "*** Titled Tuesday Blitz"]
[Site "Chess.com"]
[Date "2020.05.26"]
[Round "2"]
[White "PavelShkapenko"]
[Black "Parkas"]
[Result "1-0"]
[WhiteElo "2678"]
[BlackElo "2303"]
[TimeControl "180+1"]
[EndTime "10:18:54 PDT"]
[Termination "PavelShkapenko won by resignation"]

1. e4 {[%clk 0:02:54.7]} 1... g6 {[%clk 0:02:59.8]} 2. d4 {[%clk 0:02:52.8]}
2... Bg7 {[%clk 0:02:58.8]} 3. Nc3 {[%clk 0:02:53.4]} 3... a6 {[%clk 0:02:58.3]}
4. a4 {[%clk 0:02:49.8]} 4... b6 {[%clk 0:02:57.3]} 5. f4 {[%clk 0:02:44]} 5...
Bb7 {[%clk 0:02:57.2]} 6. Nf3 {[%clk 0:02:44.2]} 6... e6 {[%clk 0:02:48.4]} 7.
Bd3 {[%clk 0:02:42.9]} 7... Ne7 {[%clk 0:02:46.2]} 8. O-O {[%clk 0:02:41.8]}
8... d5 {[%clk 0:02:41.7]} 9. e5 {[%clk 0:02:40.6]} 9... c5 {[%clk 0:02:38.8]}
10. Qe1 {[%clk 0:02:31.2]} 10... Nbc6 {[%clk 0:02:33.7]} 11. Be3 {[%clk
0:02:31.4]} 11... c4 {[%clk 0:02:26.8]} 12. Be2 {[%clk 0:02:31.2]} 12... Nf5
{[%clk 0:02:26.9]} 13. Bf2 {[%clk 0:02:29.3]} 13... h5 {[%clk 0:02:27.1]} 14.
Nd1 {[%clk 0:02:22.4]} 14... b5 {[%clk 0:02:24.3]} 15. c3 {[%clk 0:02:18.9]}
15... Bf8 {[%clk 0:02:17]} 16. Ne3 {[%clk 0:02:18.8]} 16... Nce7 {[%clk
0:02:12.8]} 17. Nxf5 {[%clk 0:02:11.5]} 17... Nxf5 {[%clk 0:02:10]} 18. axb5
{[%clk 0:02:10.7]} 18... axb5 {[%clk 0:02:09.2]} 19. b4 {[%clk 0:02:11.3]} 19...
Be7 {[%clk 0:02:01.4]} 20. Qd2 {[%clk 0:02:11]} 20... Kd7 {[%clk 0:01:59.5]} 21.
Qb2 {[%clk 0:02:09.2]} 21... Qb6 {[%clk 0:01:55.4]} 22. g3 {[%clk 0:02:07.6]}
22... Rxa1 {[%clk 0:01:54.9]} 23. Rxa1 {[%clk 0:02:06.9]} 23... Ra8 {[%clk
0:01:55.8]} 24. Kg2 {[%clk 0:02:03.9]} 24... Rxa1 {[%clk 0:01:50.3]} 25. Qxa1
{[%clk 0:02:03.7]} 25... Qa6 {[%clk 0:01:50.8]} 26. Qxa6 {[%clk 0:02:02.3]}
26... Bxa6 {[%clk 0:01:51.7]} 27. h3 {[%clk 0:02:02.1]} 27... Ke8 {[%clk
0:01:46.8]} 28. g4 {[%clk 0:02:02.1]} 28... hxg4 {[%clk 0:01:42.5]} 29. hxg4
{[%clk 0:02:01.9]} 29... Ng7 {[%clk 0:01:42.6]} 30. Bh4 {[%clk 0:01:58.4]} 30...
Bc8 {[%clk 0:01:38.8]} 31. Kg3 {[%clk 0:01:57.1]} 31... Kf8 {[%clk 0:01:37.9]}
32. Bd1 {[%clk 0:01:53.6]} 32... Bxh4+ {[%clk 0:01:36.4]} 33. Kxh4 {[%clk
0:01:53.2]} 33... Ne8 {[%clk 0:01:04]} 34. Bc2 {[%clk 0:01:46.9]} 34... Nc7
{[%clk 0:00:57.8]} 35. Kg5 {[%clk 0:01:43.6]} 35... Na8 {[%clk 0:00:43.9]} 36.
Ng1 {[%clk 0:00:56.6]} 36... Nb6 {[%clk 0:00:42.2]} 37. Ne2 {[%clk 0:00:56.6]}
37... Na4 {[%clk 0:00:19.9]} 38. f5 {[%clk 0:00:55.8]} 38... gxf5 {[%clk
0:00:17.3]} 39. gxf5 {[%clk 0:00:56.3]} 39... Kg7 {[%clk 0:00:17.4]} 40. f6+
{[%clk 0:00:39]} 40... Kg8 {[%clk 0:00:16]} 41. Kf4 {[%clk 0:00:38.7]} 41... Nb6
{[%clk 0:00:15.4]} 42. Ke3 {[%clk 0:00:37.5]} 42... Bd7 {[%clk 0:00:14.5]} 43.
Nf4 {[%clk 0:00:36.5]} 43... Be8 {[%clk 0:00:13.6]} 44. Nh3 {[%clk 0:00:36.4]}
44... Nd7 {[%clk 0:00:13.7]} 45. Nf2 {[%clk 0:00:36.2]} 45... Nf8 {[%clk
0:00:13.9]} 46. Ng4 {[%clk 0:00:35.4]} 46... Nh7 {[%clk 0:00:11.8]} 47. Kf4
{[%clk 0:00:32.6]} 47... Nf8 {[%clk 0:00:12]} 48. Kg5 {[%clk 0:00:31.7]} 48...
Nd7 {[%clk 0:00:11.2]} 49. Nh2 {[%clk 0:00:19.3]} 49... Nb6 {[%clk 0:00:11]} 50.
Nf3 {[%clk 0:00:19]} 50... Na4 {[%clk 0:00:10.7]} 51. Bxa4 {[%clk 0:00:16.5]}
51... bxa4 {[%clk 0:00:11.6]} 52. Ne1 {[%clk 0:00:16.7]} 52... a3 {[%clk
0:00:11.5]} 53. Nc2 {[%clk 0:00:17.3]} 53... Ba4 {[%clk 0:00:11.3]} 54. Nxa3
{[%clk 0:00:16.1]} 54... Kf8 {[%clk 0:00:11.8]} 55. Kh6 {[%clk 0:00:15.5]} 55...
Ke8 {[%clk 0:00:12.3]} 56. Kg7 {[%clk 0:00:15.2]} 56... Bd7 {[%clk 0:00:12]} 57.
b5 {[%clk 0:00:14.7]} 57... Bc8 {[%clk 0:00:11.9]} 58. Nc2 {[%clk 0:00:13.9]}
58... Bd7 {[%clk 0:00:11.6]} 59. b6 {[%clk 0:00:14.3]} 59... Bc6 {[%clk
0:00:11.9]} 60. Nb4 {[%clk 0:00:14.4]} 60... Bb7 {[%clk 0:00:12.2]} 61. Kg8
{[%clk 0:00:14.7]} 61... Ba8 {[%clk 0:00:11.8]} 62. Na6 {[%clk 0:00:14.5]} 62...
Bb7 {[%clk 0:00:11.5]} 63. Nc5 {[%clk 0:00:15]} 63... Bc6 {[%clk 0:00:07.9]} 64.
b7 {[%clk 0:00:15.3]} 64... Bxb7 {[%clk 0:00:03.1]} 65. Nxb7 {[%clk 0:00:15.4]}
65... Kd7 {[%clk 0:00:02.2]} 1-0

[Event "*** Titled Tuesday Blitz"]
[Site "Chess.com"]
[Date "2020.05.26"]
[Round "2"]
[White "pfalcon1949"]
[Black "FrogMist"]
[Result "1/2-1/2"]
[WhiteElo "2046"]
[BlackElo "2361"]
[TimeControl "180+1"]
[EndTime "10:18:54 PDT"]
[Termination "Game drawn by agreement"]

1. d4 {[%clk 0:03:00.9]} 1... Nf6 {[%clk 0:02:59.7]} 2. c4 {[%clk 0:03:00.1]}
2... g6 {[%clk 0:02:58.8]} 3. Nc3 {[%clk 0:02:58.7]} 3... d5 {[%clk 0:02:58.2]}
4. cxd5 {[%clk 0:02:55]} 4... Nxd5 {[%clk 0:02:59.1]} 5. e4 {[%clk 0:02:55.1]}
5... Nxc3 {[%clk 0:02:59.3]} 6. bxc3 {[%clk 0:02:56]} 6... Bg7 {[%clk
0:02:59.8]} 7. Bc4 {[%clk 0:02:56.6]} 7... O-O {[%clk 0:02:59.5]} 8. Ne2 {[%clk
0:02:57.2]} 8... c5 {[%clk 0:02:57.5]} 9. O-O {[%clk 0:02:53]} 9... Nc6 {[%clk
0:02:56]} 10. Be3 {[%clk 0:02:53.2]} 10... Bg4 {[%clk 0:02:55.7]} 11. f3 {[%clk
0:02:52.7]} 11... Bd7 {[%clk 0:02:54.4]} 12. d5 {[%clk 0:02:47.3]} 12... Na5
{[%clk 0:02:38.2]} 13. Bd3 {[%clk 0:02:45.6]} 13... Rc8 {[%clk 0:02:21]} 14. Qd2
{[%clk 0:02:45.1]} 14... b5 {[%clk 0:02:20.6]} 15. Ng3 {[%clk 0:02:40.2]} 15...
e6 {[%clk 0:02:12.8]} 16. d6 {[%clk 0:02:20.4]} 16... e5 {[%clk 0:01:48.2]} 17.
Rad1 {[%clk 0:02:16.4]} 17... a6 {[%clk 0:01:47]} 18. Bh6 {[%clk 0:02:13.7]}
18... Be6 {[%clk 0:01:45.2]} 19. Bxg7 {[%clk 0:02:12.7]} 19... Kxg7 {[%clk
0:01:46.1]} 20. Be2 {[%clk 0:01:56.6]} 20... Qd7 {[%clk 0:01:31.6]} 21. Qg5
{[%clk 0:01:55.1]} 21... f5 {[%clk 0:00:33.4]} 22. exf5 {[%clk 0:01:30.1]} 22...
Bxf5 {[%clk 0:00:30]} 23. Nxf5+ {[%clk 0:01:07.3]} 23... Rxf5 {[%clk 0:00:30.9]}
24. Qg3 {[%clk 0:01:06.2]} 24... Rd8 {[%clk 0:00:22]} 25. Bd3 {[%clk 0:01:02.6]}
25... Rf4 {[%clk 0:00:20]} 26. Be4 {[%clk 0:00:59.3]} 26... Nc4 {[%clk
0:00:19.2]} 27. Rfe1 {[%clk 0:00:52.3]} 27... Qe6 {[%clk 0:00:16]} 28. h4 {[%clk
0:00:50.5]} 28... Rxd6 {[%clk 0:00:15.5]} 29. Rxd6 {[%clk 0:00:49.3]} 29... Qxd6
{[%clk 0:00:16.4]} 30. h5 {[%clk 0:00:49.6]} 30... Nd2 {[%clk 0:00:14.5]} 31.
Rd1 {[%clk 0:00:45.4]} 31... b4 {[%clk 0:00:15]} 32. hxg6 {[%clk 0:00:42]} 32...
Nxe4 {[%clk 0:00:14.5]} 33. Qe1 {[%clk 0:00:36.3]} 33... Qxg6 {[%clk 0:00:10.4]}
34. fxe4 {[%clk 0:00:35.5]} 34... Rxe4 {[%clk 0:00:10.4]} 35. Rd7+ {[%clk
0:00:34.4]} 35... Kh6 {[%clk 0:00:10.8]} 36. Qd2+ {[%clk 0:00:33.2]} 36... Rf4
{[%clk 0:00:11.4]} 37. Kh2 {[%clk 0:00:31.7]} 37... Qh5+ {[%clk 0:00:11.3]} 38.
Kg1 {[%clk 0:00:31.6]} 38... Qg5 {[%clk 0:00:11.5]} 39. Qd6+ {[%clk 0:00:30.8]}
39... Rf6 {[%clk 0:00:11]} 40. Qd1 {[%clk 0:00:29.1]} 40... Qe3+ {[%clk
0:00:10.7]} 41. Kh1 {[%clk 0:00:28.3]} 41... Qe4 {[%clk 0:00:10.7]} 42. Qd2+
{[%clk 0:00:24.3]} 42... Kg6 {[%clk 0:00:10.9]} 43. Rd6 {[%clk 0:00:19.6]} 43...
Qh4+ {[%clk 0:00:10]} 44. Kg1 {[%clk 0:00:19.6]} 44... bxc3 {[%clk 0:00:10.5]}
45. Rxf6+ {[%clk 0:00:18.8]} 45... Qxf6 {[%clk 0:00:11.4]} 46. Qd3+ {[%clk
0:00:18.5]} 46... Qf5 {[%clk 0:00:10.6]} 47. Qxc3 {[%clk 0:00:19.4]} 47... c4
{[%clk 0:00:09.1]} 48. Qxc4 {[%clk 0:00:19.4]} 48... Qb1+ {[%clk 0:00:09]} 49.
Kh2 {[%clk 0:00:18.6]} 49... Qb6 {[%clk 0:00:09.1]} 50. Qe4+ {[%clk 0:00:17.5]}
50... Kg7 {[%clk 0:00:08.3]} 51. Qxe5+ {[%clk 0:00:17.6]} 51... Kg8 {[%clk
0:00:08.8]} 52. Qg5+ {[%clk 0:00:17.3]} 52... Kf7 {[%clk 0:00:08.2]} 53. Qh5+
{[%clk 0:00:16.6]} 53... Qg6 {[%clk 0:00:08.3]} 54. Qd5+ {[%clk 0:00:17.1]}
54... Kg7 {[%clk 0:00:08]} 55. Qb7+ {[%clk 0:00:17.5]} 55... Kh6 {[%clk
0:00:07.9]} 56. Qf3 {[%clk 0:00:17.9]} 56... Qh5+ {[%clk 0:00:07.6]} 57. Qh3
{[%clk 0:00:16.4]} 57... Kg5 {[%clk 0:00:07.5]} 58. Kg3 {[%clk 0:00:17.3]} 58...
Qxh3+ {[%clk 0:00:06.2]} 59. Kxh3 {[%clk 0:00:18.2]} 59... Kf4 {[%clk
0:00:06.3]} 60. Kh2 {[%clk 0:00:19.1]} 60... Kg4 {[%clk 0:00:06.5]} 61. g3
{[%clk 0:00:19.2]} 61... a5 {[%clk 0:00:07]} 62. Kg2 {[%clk 0:00:20.1]} 62... a4
{[%clk 0:00:07.7]} 63. Kf2 {[%clk 0:00:21]} 63... a3 {[%clk 0:00:08.3]} 64. Kg2
{[%clk 0:00:20.9]} 64... h6 {[%clk 0:00:08.6]} 65. Kf2 {[%clk 0:00:21.3]} 65...
Kf5 {[%clk 0:00:09]} 66. Kf3 {[%clk 0:00:21.5]} 66... Ke5 {[%clk 0:00:09.6]} 67.
Kg4 {[%clk 0:00:21.6]} 67... Kd4 {[%clk 0:00:09.5]} 68. Kh5 {[%clk 0:00:22]}
68... Kc3 {[%clk 0:00:10.4]} 69. g4 {[%clk 0:00:22.8]} 69... Kb2 {[%clk
0:00:11.3]} 70. Kxh6 {[%clk 0:00:23.4]} 70... Kxa2 {[%clk 0:00:12.2]} 71. g5
{[%clk 0:00:24.2]} 71... Kb3 {[%clk 0:00:13]} 72. g6 {[%clk 0:00:25.1]} 72... a2
{[%clk 0:00:13.9]} 73. g7 {[%clk 0:00:25.5]} 73... a1=Q {[%clk 0:00:14.8]} 74.
g8=Q+ {[%clk 0:00:25.5]} 74... Kc2 {[%clk 0:00:13.6]} 75. Qg6+ {[%clk
0:00:24.9]} 75... Kb3 {[%clk 0:00:13]} 76. Qg8+ {[%clk 0:00:24.9]} 76... Kb2
{[%clk 0:00:13.1]} 77. Qg6 {[%clk 0:00:24.4]} 1/2-1/2

[Event "*** Titled Tuesday Blitz"]
[Site "Chess.com"]
[Date "2020.05.26"]
[Round "2"]
[White "tylityli"]
[Black "okriak"]
[Result "0-1"]
[WhiteElo "2308"]
[BlackElo "2718"]
[TimeControl "180+1"]
[EndTime "10:18:57 PDT"]
[Termination "okriak won on time"]

1. d4 {[%clk 0:02:56.7]} 1... d5 {[%clk 0:02:57.5]} 2. c4 {[%clk 0:02:56.7]}
2... e6 {[%clk 0:02:57.5]} 3. Nc3 {[%clk 0:02:56.5]} 3... c6 {[%clk 0:02:57.6]}
4. e3 {[%clk 0:02:55.7]} 4... Nf6 {[%clk 0:02:56.9]} 5. Nf3 {[%clk 0:02:54.4]}
5... a6 {[%clk 0:02:56.2]} 6. b3 {[%clk 0:02:54.3]} 6... c5 {[%clk 0:02:53.1]}
7. Bb2 {[%clk 0:02:54.2]} 7... Nc6 {[%clk 0:02:52.8]} 8. Be2 {[%clk 0:02:53.5]}
8... cxd4 {[%clk 0:02:52.6]} 9. exd4 {[%clk 0:02:50.6]} 9... Be7 {[%clk
0:02:51.3]} 10. O-O {[%clk 0:02:50.1]} 10... dxc4 {[%clk 0:02:50.2]} 11. bxc4
{[%clk 0:02:49.5]} 11... O-O {[%clk 0:02:50.4]} 12. Rc1 {[%clk 0:02:47.9]} 12...
b6 {[%clk 0:02:49.6]} 13. Qd2 {[%clk 0:02:34.4]} 13... Ra7 {[%clk 0:02:49.1]}
14. Rfd1 {[%clk 0:02:34.2]} 14... Rd7 {[%clk 0:02:48.2]} 15. Qf4 {[%clk
0:02:33.9]} 15... Qc7 {[%clk 0:02:42.4]} 16. Qxc7 {[%clk 0:02:26.1]} 16... Rxc7
{[%clk 0:02:42.3]} 17. Na4 {[%clk 0:02:24.8]} 17... Rb7 {[%clk 0:02:37.1]} 18.
c5 {[%clk 0:02:17]} 18... b5 {[%clk 0:02:30.6]} 19. Nb6 {[%clk 0:02:15.4]} 19...
Nd5 {[%clk 0:02:21.8]} 20. Nxd5 {[%clk 0:02:01.2]} 20... exd5 {[%clk 0:02:21.5]}
21. h3 {[%clk 0:02:01.4]} 21... Bf5 {[%clk 0:02:17]} 22. Bc3 {[%clk 0:01:52.2]}
22... f6 {[%clk 0:02:15.7]} 23. Re1 {[%clk 0:01:48]} 23... Kf7 {[%clk
0:02:13.5]} 24. g4 {[%clk 0:01:42.3]} 24... Bg6 {[%clk 0:02:07.4]} 25. Nh4
{[%clk 0:01:39.3]} 25... Be4 {[%clk 0:01:53.5]} 26. f3 {[%clk 0:01:38.5]} 26...
Bg6 {[%clk 0:01:53.3]} 27. Nxg6 {[%clk 0:01:37.7]} 27... hxg6 {[%clk 0:01:53.1]}
28. f4 {[%clk 0:01:27.8]} 28... f5 {[%clk 0:01:45.7]} 29. Kg2 {[%clk 0:01:21.1]}
29... Bf6 {[%clk 0:01:37.4]} 30. Bf3 {[%clk 0:01:16.5]} 30... Rd8 {[%clk
0:01:31.5]} 31. Rcd1 {[%clk 0:01:15.9]} 31... b4 {[%clk 0:01:26]} 32. Bb2 {[%clk
0:01:14.5]} 32... fxg4 {[%clk 0:01:18.5]} 33. hxg4 {[%clk 0:01:13.3]} 33... g5
{[%clk 0:01:18.4]} 34. fxg5 {[%clk 0:00:49.7]} 34... Bxg5 {[%clk 0:01:18.1]} 35.
Rf1 {[%clk 0:00:46.2]} 35... Kg8 {[%clk 0:01:13]} 36. Kg3 {[%clk 0:00:43.9]}
36... Rf7 {[%clk 0:01:07.4]} 37. Be2 {[%clk 0:00:40.9]} 37... Rxf1 {[%clk
0:00:57.2]} 38. Bxf1 {[%clk 0:00:38.2]} 38... a5 {[%clk 0:00:53.2]} 39. Bb5
{[%clk 0:00:37.6]} 39... Ne7 {[%clk 0:00:50.5]} 40. Re1 {[%clk 0:00:34.6]} 40...
Kf7 {[%clk 0:00:49.5]} 41. a4 {[%clk 0:00:30.7]} 41... Rh8 {[%clk 0:00:45.7]}
42. Rf1+ {[%clk 0:00:29]} 42... Ke6 {[%clk 0:00:37.7]} 43. Re1+ {[%clk
0:00:28.2]} 43... Kf7 {[%clk 0:00:37.7]} 44. Rf1+ {[%clk 0:00:28.4]} 44... Kg8
{[%clk 0:00:37.5]} 45. c6 {[%clk 0:00:24.2]} 45... g6 {[%clk 0:00:20.5]} 46. c7
{[%clk 0:00:22.1]} 46... Kg7 {[%clk 0:00:20.4]} 47. Bd7 {[%clk 0:00:21]} 47...
Bh4+ {[%clk 0:00:20]} 48. Kg2 {[%clk 0:00:19.8]} 48... Bf6 {[%clk 0:00:19.8]}
49. Re1 {[%clk 0:00:16.8]} 49... Kf7 {[%clk 0:00:19.2]} 50. Rc1 {[%clk 0:00:14]}
50... Nc8 {[%clk 0:00:18.9]} 51. Bc6 {[%clk 0:00:10.6]} 51... Ke6 {[%clk
0:00:18.3]} 52. Bb5 {[%clk 0:00:08.2]} 52... Kd6 {[%clk 0:00:17.5]} 53. Rc6+
{[%clk 0:00:07.5]} 53... Ke7 {[%clk 0:00:17.9]} 54. Rc5 {[%clk 0:00:07]} 54...
Kd6 {[%clk 0:00:17.3]} 55. Rc6+ {[%clk 0:00:07]} 55... Ke7 {[%clk 0:00:17.8]}
56. Rc5 {[%clk 0:00:07.2]} 56... Rh4 {[%clk 0:00:17.4]} 57. Kg3 {[%clk
0:00:05.5]} 57... Rh1 {[%clk 0:00:17.3]} 58. Rxd5 {[%clk 0:00:04]} 58... Ke6
{[%clk 0:00:17.4]} 59. Rd8 {[%clk 0:00:02.7]} 59... Rg1+ {[%clk 0:00:15.5]} 60.
Kf2 {[%clk 0:00:01.7]} 60... Bxd4+ {[%clk 0:00:14.5]} 61. Rxd4 {[%clk
0:00:01.2]} 61... Rb1 {[%clk 0:00:13.4]} 0-1